Cogmind - Beta 10.2 @@@ ROGUE MODE // 2020.10.31 @ 13:19:06 Player: Winter Result: Self-destructed Performance ------------- Evolutions (1) 500 Regions Visited (2) 400 Robots Destroyed (17) 85 Value Destroyed (379) 379 Prototype IDs (0) 0 Alien Tech Used (0) 0 Bonus (0) 0 TOTAL SCORE: 1364 Bonus ------- None Cogmind --------- Core Integrity 400/400 Matter 194/300 Energy 0/400 System Corruption 0% Temperature Cool (3) Movement Core (200) Ox3 Location -9/Materials Parts ------- > --- POWER (1) -------- (None) > --- PROPULSION (3) --- VTOL Module VTOL Module VTOL Module > --- UTILITY (3) ------ Small Storage Unit Large Battery Improved Sensor Array > --- WEAPON (2) ------- Shotgun > --- INVENTORY (6) ---- Aluminum Leg Hover Unit Hover Unit Flight Unit Field Recycling Unit (0) Shotgun Peak State ------------ > --- POWER ------------ (None) > --- PROPULSION ------- VTOL Module VTOL Module VTOL Module > --- UTILITY ---------- Small Storage Unit Large Battery Improved Sensor Array > --- WEAPON ----------- Shotgun Light Cannon > --- INVENTORY -------- Aluminum Leg Hover Unit Hover Unit Flight Unit Field Recycling Unit Shotgun [Rating: 13] Favorites ----------- Power Ion Engine Engine Ion Engine Propulsion VTOL Module Leg Aluminum Leg Flight Unit VTOL Module Utility Small Storage Unit Device Improved Terrain Scanner Storage Small Storage Unit Processor Seismic Analyzer Protection Light Armor Plating Weapon Small Laser Energy Gun Small Laser Ballistic Gun Shotgun Ballistic Cannon Light Cannon Build | -11 -10 -9 ------- Run | Scr Mat Mat Slots Evolved 2 | . . 2 Power . | . . . Propulsion 1 | . . 1 Utility 1 | . . 1 Weapon . | . . . Parts Attached 22 | 6 12 4 Power 2 | 1 1 . Engine 2 | 1 1 . Core . | . . . Reactor . | . . . Propulsion 8 | 2 5 1 Treads . | . . . Leg 2 | 2 . . Wheel . | . . . Hover . | . . . Flight 6 | . 5 1 Utility 6 | 1 3 2 Device 2 | . 1 1 Storage 2 | 1 . 1 Processor 1 | . 1 . Hackware . | . . . Protection 1 | . 1 . Artifact . | . . . Weapon 6 | 2 3 1 Energy Gun 4 | 2 2 . Energy Cannon . | . . . Ballistic Gun 1 | . . 1 Ballistic Cannon 1 | . 1 . Launcher . | . . . Special Weapon . | . . . Impact Weapon . | . . . Slashing Weapon . | . . . Piercing Weapon . | . . . Special Melee Weapon . | . . . Unidentified Prototypes . | . . . Parts Lost 4 | . 3 1 Power 1 | . 1 . Propulsion . | . . . Utility . | . . . Weapon 3 | . 2 1 Highest Loss Streak 2 | . 2 1 Average Slot Usage (%) 86 | . 87 78 Engine 12 | . 13 . Leg 3 | . 3 . Flight 24 | . 23 33 Device 3 | . 3 8 Storage 14 | . 14 22 Processor 2 | . 2 2 Protection 1 | . 1 . Energy Gun 18 | . 20 . Ballistic Cannon 4 | . 3 9 Naked Turns . | . . . Heaviest Build 15 | 11 15 14 Greatest Support 20 | 20 20 15 Greatest Overweight (x) 4 | . 4 . Average Overweight (x) . | . . . Largest Inventory Capacity 6 | 6 6 6 Average Capacity 5 | 5 6 6 Most Carried 6 | 4 6 6 Average Carried 3 | . 3 4 Final Capacity 6 | 6 6 6 Final Carried 6 | . 5 6 Class Distribution -------------------- 100% | Mutant Dominant Class ---------------- Mutant | -10/Materials Mutant | -9/Materials Resources | -11 -10 -9 ----------- Run | Scr Mat Mat Matter Collected 534 | 36 489 9 Remotely . | . . . Salvage Created 643 | . 606 37 Parts 32 | . 27 5 Haulers Intercepted . | . . . Recyclers Shooed 1 | . 1 . Parts Field Recycled . | . . . Retrieved Matter . | . . . Parts Self-Destructed . | . . . Prevented . | . . . Kills | -11 -10 -9 ------- Run | Scr Mat Mat Combat Hostiles Destroyed 11 | . 11 . Guns 8 | . 8 . Cannons 3 | . 3 . Classes Destroyed 5 | . 4 1 Worker 1 | . . 1 Recycler 3 | . 3 . Watcher 2 | . 1 1 Swarmer 3 | . 3 . Grunt 8 | . 8 . Best Kill Streak 4 | . 4 1 Combat Bots Only 3 | . 3 . Max Kills in Single Turn 1 | . 1 1 Gunslinging . | . . . Exploded . | . . . Melee . | . . . Uniques/NPCs Destroyed . | . . . Combat | -11 -10 -9 -------- Run | Scr Mat Mat Damage Taken 506 | . 492 14 Core 93 | . 93 . Absorbed by Shields . | . . . Core Remaining (%) 81 | 100 62 . Volleys Fired 63 | . 56 7 Largest 2 | . 2 2 Hottest 105 | . 105 58 Shots Fired 90 | . 81 9 Gun 60 | . 57 3 Cannon 30 | . 24 6 Launcher . | . . . Special . | . . . Kinetic 33 | . 24 9 Thermal 57 | . 57 . Explosive . | . . . Electromagnetic . | . . . Robot Hit Streak 8 | . 8 3 Robot Miss Streak 6 | . 6 3 Penetration Max . | . . . Secondary Targets 2 | . 2 . Max Gunslinging Chain 1 | . 1 . Shots Hit Robots 51 | . 45 6 Core Hits 25 | . 23 2 Critical Hits . | . . . Critical Kills . | . . . Critical Parts Destroyed . | . . . Melee Attacks . | . . . Impact . | . . . Slashing . | . . . Piercing . | . . . Sneak Attacks . | . . . Combat Hostiles . | . . . Follow-up Attacks . | . . . Damage Inflicted 661 | . 599 62 Guns 369 | . 358 11 Cannons 283 | . 232 51 Explosions . | . . . Melee . | . . . Ramming 9 | . 9 . Kinetic 294 | . 232 62 Thermal 358 | . 358 . Explosive . | . . . Electromagnetic . | . . . Impact . | . . . Slashing . | . . . Piercing . | . . . Highest Corruption . | . . . Average Corruption . | . . . Corruption Purged . | . . . Overload Shots . | . . . Overflow Damage . | . . . Projectiles . | . . . Explosions . | . . . Melee . | . . . Knockbacks 6 | . 6 . Impact . | . . . Kinetic 6 | . 6 . Secondary . | . . . Self-Inflicted Damage 4 | . 4 . Shots . | . . . Rammed 2 | . 2 . Targets Rammed 2 | . 2 . Kicked . | . . . Crushed . | . . . Highest Temperature 564 | . 564 . Average Temperature 156 | . 156 . Received Heat Transfer 225 | . 216 9 Effects 10 | . 10 . Shutdowns 3 | . 3 . Interference 1 | . 1 . Matter Decay 3 | . 3 . Short Circuit 3 | . 3 . Siege Activations . | . . . Robots Corrupted . | . . . Combat Hostiles . | . . . Parts Fried . | . . . Impact Corruptions . | . . . Robots Melted . | . . . Combat Hostiles . | . . . Parts Melted 1 | . 1 . Heat Transferred 835 | . 835 . Parts Sabotaged . | . . . Parts Stolen . | . . . Parts Stripped . | . . . Power Chain Reactions . | . . . Missiles Intercepted . | . . . Alert | -11 -10 -9 ------- Run | Scr Mat Mat Peak Influence 201 | . 201 112 Initial 50 | . . 50 Average 53 | . 54 72 Maximum Alert Level 1 | . 1 . Low Security (%) 95 | 100 94 100 Level 1 4 | . 5 . Level 2 . | . . . Level 3 . | . . . Level 4 . | . . . Level 5 . | . . . High Security . | . . . Max Security . | . . . Squads Dispatched 2 | . 2 . Investigation 1 | . 1 . Extermination . | . . . Reinforcement 1 | . 1 . Assault . | . . . Garrison . | . . . Intercept . | . . . Construction Impeded . | . . . Haulers Reinforced . | . . . Stealth | -11 -10 -9 --------- Run | Scr Mat Mat Distress Signals 3 | . 3 . Communications Jammed . | . . . Distress Signals . | . . . Times Spotted 24 | . 21 3 Peak Tracking Total 5 | . 5 3 Tactical Retreats . | . . . Traps | -11 -10 -9 ------- Run | Scr Mat Mat Traps Triggered 2 | . 2 . Indirectly . | . . . Trap Hack Attempts . | . . . Triggered . | . . . Disarmed . | . . . Reprogrammed . | . . . Reused . | . . . Traps Extracted . | . . . Installed . | . . . Triggered . | . . . Machines | -11 -10 -9 ---------- Run | Scr Mat Mat Machines Disabled . | . . . Max in Single Turn . | . . . Machines Sabotaged . | . . . Garrisons Compromised . | . . . Overloaded Fab Kills . | . . . Fab Network Shutdowns . | . . . Hacking | -11 -10 -9 --------- Run | Scr Mat Mat Machines Accessed 7 | . 5 2 Terminals 7 | . 5 2 Fabricators . | . . . Repair Stations . | . . . Recycling Units . | . . . Scanalyzers . | . . . Garrison Access . | . . . Total Hacks 11 | . 8 3 Successful 4 | . 4 . Failed 7 | . 4 3 Catastrophic 3 | . 1 2 Database Lockouts . | . . . Manual 5 | . 2 3 Terminals 11 | . 8 3 Fabricators . | . . . Repair Stations . | . . . Recycling Units . | . . . Scanalyzers . | . . . Garrison Access . | . . . Terminal Hacks 4 | . 4 . Level Access Points 1 | . 1 . Alert Level 1 | . 1 . Patrol Status 1 | . 1 . Recall Reinforcements 1 | . 1 . Fabricator Hacks . | . . . Repair Station Hacks . | . . . Recycling Unit Hacks . | . . . Scanalyzer . | . . . Garrison Access Hacks . | . . . Unauthorized Hacks . | . . . Terminals . | . . . Fabricators . | . . . Repair Stations . | . . . Recycling Units . | . . . Scanalyzers . | . . . Garrison Access . | . . . Data Cores Recovered . | . . . Used . | . . . Hacking Detections 4 | . 3 1 Full Trace Events 1 | . 1 . Feedback Events . | . . . Feedback Blocked . | . . . Robot Schematics Acquired . | . . . Robots Built . | . . . Matter . | . . . Time . | . . . Total Robot Build Rating . | . . . Part Schematics Acquired . | . . . Parts Built . | . . . Matter . | . . . Time . | . . . Total Part Build Rating . | . . . Parts Repaired . | . . . Time . | . . . Parts Recycled . | . . . Recycled Matter . | . . . Retrieved Matter . | . . . Retrieved Components . | . . . Parts Scanalyzed . | . . . Part Schematics Acquired . | . . . Parts Damaged . | . . . Bothacking | -11 -10 -9 ------------ Run | Scr Mat Mat Used RIF Installer . | . . . Robots Hacked . | . . . Non-combat . | . . . Combat . | . . . Robot Hacks Applied . | . . . Relay Couplers Released . | . . . Robots Rewired . | . . . Allies Hacked . | . . . Hacks Repelled . | . . . Allies | -11 -10 -9 -------- Run | Scr Mat Mat Total Allies . | . . . Largest Group . | . . . Highest-Rated Group . | . . . Highest-Rated Ally . | . . . Total Orders . | . . . Ally Attacks . | . . . Total Damage . | . . . Kills . | . . . Allies Corrupted . | . . . Allies Melted . | . . . Intel | -11 -10 -9 ------- Run | Scr Mat Mat Robot Analysis Total . | . . . Derelict Logs Recovered . | . . . Drone Launches . | . . . Drone Recoveries . | . . . Exploration | -11 -10 -9 ------------- Run | Scr Mat Mat Turns Passed 881 | 44 762 75 Spaces Moved 675 | 29 505 141 Core 8 | 5 3 . Treads . | . . . Legs 117 | 24 93 . Wheels . | . . . Hover . | . . . Flight 550 | . 409 141 Fastest Speed 34 | 50 37 34 Average Speed 99 | 107 116 34 Slowest Speed 250 | 120 250 34 Overloaded Moves . | . . . Propulsion Burnouts . | . . . Robots Hopped 1 | . . 1 Cave-ins Triggered . | . . . Exploration Rate (%) 28 | 3 62 21 Regions Visited 2 Branch Regions . Pre-discovered Areas . | . . . Known Exits Taken 1 | . 1 . Unknown Exits Taken 1 | 1 . . Scrap Searched . | . . . Spaces Dug . | . . . Terrain Destroyed . | . . . Melee . | . . . Projectile . | . . . AOE . | . . . Terrain Rammed . | . . . Walls Destroyed . | . . . Machines Disabled . | . . . Actions | -11 -10 -9 --------- Run | Scr Mat Mat Total 799 | 42 599 158 Wait . | . . . Move 671 | 28 504 139 Hop 1 | . . 1 Pick Up 27 | 7 15 5 Fast Attach 1 | . . 1 Attach 21 | 6 12 3 Detach 2 | . 2 . Swap . | . . . Drop 11 | 1 8 2 Fire 63 | . 56 7 Melee . | . . . Ram 2 | . 2 . Kick . | . . . Crush . | . . . Escape Stasis . | . . . Rewire . | . . . Trap . | . . . Miscellaneous . | . . . Route ------- -11/Scrapyard -10/Materials (discovered 3 exits: *Mat x3) -9/Materials (discovered 1 exit: [*Sto]) History --------- Turn | Location | Event 12 | -11/Scrapyard | Discovered new exit (range 16) 45 | -11/Scrapyard | Entered Materials 288 | -10/Materials | Identified exit to Materials 300 | -10/Materials | Build established: Mutant 807 | -10/Materials | Entered another Materials area 807 | -9/Materials | Evolved 2 slots: Propulsion x1, Utility x1 877 | -9/Materials | Discovered new exit (range 16) 882 | -9/Materials | Self-destructed Last Messages --------------- PARAMETERS=PROPULSION_1,UTILITY_1 LOCATION=MATERIALS GOAL=ESCAPE Acquired Imp. Sensor Array. Discarded Seismic Analyzer. Acquired Field Recycling Unit. Connecting with Terminal... W-16 Scout destroyed. Acquired 9 matter. Acquired Hover Unit. Connecting with Terminal... Dropped Med. Storage Unit. Acquired Shotgun. K-01 Serf collects debris. Acquired Shotgun. K-01 Serf collects debris. EXIT=FOUND Lgt. Cannon destroyed. K-01 Serf collects debris. K-01 Serf destroyed. Map ----- +----------------------------------------------------+ | ?????????????????????????????????????????????????? | | ?????????????????????????????????????????????????? | | ?????????????????????????????????????????????????? | | ?????????????????????????????????????????????????? | | ?????????????????????????????????????????????????? | | ?????????????????????????????????????????????????? | | ?????????????????????????????????????????????????? | | ?????????????????????????????????????????????????? | | ?????????????????????????????????????????????????? | | ?????????????????????????????????????????????????? | | ????????????????????????????? < ?????????????????? | | ????????????????????????????? ????????????????? | | ????????????????????????????? ????????????????? | | ????????????????????????????? #????????????????? | | ????????????????????????????# #????????????????? | | ????????????????????????????# #????????????????? | | ????????????????????????????# #????????????????? | | ???????????????????????????## ##???????????????? | | ??????????????????????????## #???????????????? | | ??????????????????????????? #???????????????? | | ??????????????????????????? #???????????????? | | ???????????????????????????? #???????????????? | | ???????????????????????????? #??? ???????? | | ??????????????????########### #???? ???????? | | ??????????????????# # #???? ???????? | | ??????????????????# @ + #???? ???????? | | ??????????????????# # #???? ???????? | | ??????????????????# [# #????# #???????? | | ??????????????????# *%= # #????# #???????? | | ??????????????????# # #????# #???????? | | ??????????????????# ! # +????# #???????? | | ??????????????????# ! + #????# #???????? | | ??????????????????########### #????# #???????? | | ????????????????????????????# #????# #???????? | | ???????????????????????????## ###### #???????? | | ???????????????????????????#T #???????? | | ???????????????????????????## #???????? | | ????????????????????????????# !##???????? | | ????????????????????????????##/######## #????????# | | ????????????????????????????? ?????### ###???? # | | ?????????????????????????????""""???# #??!! # | | ?????????????????????????????""""" ## # !! # | | ?????????????????????????????""""" / T + !! # | | ?????????????????????????????""""" ## # # | | ?????????????????????????????"""""??# #?? # | | ????????????????????????????? ? ??####+########## | | ??????????????????????????????? ???# #?? | | ??????????????????????????????#????# #?? | | ???????????????????????????????????# #?? | | ???????????????????????????????????# #?? | +----------------------------------------------------+ Best States ------------- Heat Dissipation 28 Energy Generation 10 Energy Capacity 400 Matter Stores 300 Matter Capacity 300 Sight Range 16 Robot Scan Range 13 Terrain Scan Range 16 Terrain Scan Density 60 Armor Coverage 150 Evasion (%) 63 Item Schematics ----------------- None Robot Schematics ------------------ None Fabricated ------------ Nothing Alien Tech Used ----------------- None Achievements -------------- None Challenges ------------ None Game ------ Seed Winter Manual? 1 Play Time 00:15:46 Cumulative 4.2 hours Start 2020.10.31 @ 13:02:35 End 2020.10.31 @ 13:19:06 Sessions 1 Manual Loads 0 Difficulty Rogue Special Mode None Game No. 10 Rogue 10 Adventurer 0 Explorer 0 Win Type - Total 0 Types 0/0/0/0/0/0/0/0/0 Lore% 7 Gallery% 10 Achievement% 8 Wizard Run 0 Options --------- ASCII 0 Keyboard 0 Movement Mouse Keybinds 0 Fullscreen 1 Font 18/SmallcapsGlow Map View 76x50 Tactical HUD 0 Map Filters NONE Filters NONE Steam 1 RUN: 8e36c809-c4fa-4d65-800d-77e82d250ba2